bitfinex/quotes_ETHUSD_20241116
["timestamp","ask_amount","ask_price","bid_price","bid_amount"]
[1731767844588,3.1574,3167.2,3166.2,3.16827]
[1731767844589,3.15747,3167.1,3166.3,6.70818]
[1731767844879,3.15747,3167.1,3166.4,3.15808]
[1731767845098,3.15706,3167.5,3166.5,0.06314913]
[1731767845240,3.15706,3167.5,3166.9,3.15765]
[1731767846443,3.15689,3167.7,3166.7,3.15784]
[1731767846644,3.15696,3167.6,3166.7,3.15784]
[1731767847074,3.15714,3167.5,3166.7,3.15784]
[1731767848285,3.15717,3167.4,3166.7,3.15784]
[1731767848446,3.15717,3167.4,3166.8,3.15775]
[1731767848953,3.15697,3167.6,3166.9,3.15757]
[1731767849398,3.15697,3167.6,3167.0,0.05184052]
[1731767849980,3.15697,3167.6,3166.9,3.15757]
[1731767850185,3.15697,3167.6,3167.1,0.05180657]
[1731767850388,3.15697,3167.6,3167.0,3.27251446]
[1731767850682,3.15678,3167.8,3167.0,0.11498446]
[1731767850871,3.15687,3167.7,3167.0,3.59973591]
[1731767851192,3.0,3168.3,3167.0,0.05184052]
[1731767851193,3.15646,3168.1,3167.0,0.05184052]
[1731767851486,3.15715,3167.5,3166.8,3.15775]
[1731767851654,3.15709,3167.5,3166.9,0.05187634]
[1731767852056,3.15717,3167.4,3166.9,0.05187634]
[1731767852688,3.15717,3167.4,3166.8,3.15775]
[1731767852983,3.15717,3167.4,3166.9,0.05187634]
[1731767853290,3.15736,3167.2,3166.9,0.05187634]
[1731767853595,3.15736,3167.2,3166.5,3.15798]
[1731767853750,3.15736,3167.2,3167.0,0.05184611]
[1731767854088,3.15736,3167.2,3167.1,0.05181682]
[1731767854445,3.15736,3167.2,3167.1,0.05181775]
[1731767854761,3.15717,3167.4,3167.1,0.05181775]
[1731767854952,3.15727,3167.3,3166.6,3.22106892]
[1731767855155,3.15727,3167.3,3167.2,0.05179963]
[1731767855366,3.15746,3167.1,3166.4,3.70815]
[1731767855847,3.15746,3167.1,3166.5,0.0520653]
[1731767856051,3.15792,3166.7,3166.5,0.0520653]
[1731767856285,3.15796,3166.6,3166.5,0.0520653]
[1731767856447,3.15824,3166.4,3165.5,3.16903]
[1731767856652,3.15831,3166.3,3165.7,3.15885]
[1731767857345,3.15811,3166.5,3165.8,3.15873]
[1731767857656,3.15818,3166.4,3165.8,3.15873]
[1731767858102,3.15798,3166.6,3165.6,0.55]
[1731767858248,3.15826,3166.3,3165.7,0.371903]
[1731767858592,3.15826,3166.3,3165.7,3.530713]
[1731767862393,0.631435,3167.3,3165.8,0.62316443]
[1731767862594,3.15734,3167.3,3166.5,3.158]
[1731767862766,6.83231774,3168.4,3166.7,3.15783]
[1731767862767,3.15705,3167.6,3166.7,3.15783]
[1731767863085,3.1573,3167.3,3166.3,3.15823]
[1731767863289,0.31573,3167.3,3166.3,3.68914752]
[1731767863499,3.15671,3167.9,3166.0,3.0]
[1731767863712,3.67605774,3168.0,3166.0,3.0]
[1731767863851,3.15777,3166.8,3166.1,3.15841]
[1731767864051,3.15769,3166.9,3166.2,3.15828]
[1731767864248,3.15769,3166.9,3166.2,0.631679]
[1731767864491,3.15769,3166.9,3166.3,3.27015645]
[1731767864689,3.15738,3167.2,3166.4,3.15808]
[1731767864903,3.67605774,3168.0,3166.7,3.15784]
[1731767864904,3.15729,3167.3,3166.7,3.15784]
[1731767865193,3.15716,3167.4,3166.8,0.59853827]
[1731767865402,3.15716,3167.4,3166.8,3.75629827]
[1731767865768,3.67605774,3168.4,3166.9,0.06314463]
[1731767865974,3.67605774,3168.4,3166.8,4.4477221]
[1731767865975,3.15704,3167.6,3166.8,3.75622827]
[1731767866315,3.15704,3167.6,3167.0,0.0484942]
[1731767866316,3.15722,3167.4,3167.0,0.0484942]
[1731767866593,3.15706,3167.5,3167.1,0.04843894]
[1731767866805,3.0,3168.3,3167.1,0.04843894]
[1731767866806,3.15736,3167.2,3167.1,0.04843894]
[1731767867099,3.15747,3167.1,3166.5,3.0]
[1731767867656,3.15736,3167.2,3166.5,6.15805]
[1731767868095,3.15686,3167.7,3166.5,6.15805]
[1731767868096,3.15753,3167.1,3166.5,6.15805]
[1731767868628,3.472666,3167.6,3166.8,3.15774]
[1731767868840,3.15698,3167.6,3166.8,3.15774]
[1731767869131,3.15777,3166.8,3166.2,0.55]
[1731767869934,3.15777,3166.8,3166.0,0.55]
[1731767870133,3.15777,3166.8,3166.1,3.15845]
[1731767870294,3.15757,3167.0,3166.2,0.55]
[1731767870639,3.15786,3166.7,3166.2,0.55]
[1731767870850,3.15786,3166.7,3166.0,3.0]
[1731767870995,3.15807,3166.5,3166.0,3.0]
[1731767871196,3.15786,3166.7,3166.0,6.15854]
[1731767871445,3.15786,3166.7,3166.0,3.0]
[1731767871446,0.631555,3166.7,3166.0,3.0]
[1731767871651,3.15802,3166.6,3165.8,0.07316319]
[1731767871814,3.15802,3166.6,3166.0,3.15848]
[1731767872745,3.15806,3166.5,3165.8,3.22188319]
[1731767872899,3.15806,3166.5,3165.9,3.0]
[1731767873331,3.15832,3166.3,3165.7,3.0]
[1731767873911,3.15832,3166.3,3165.7,3.615893]
[1731767874511,3.15846,3166.1,3165.5,3.15905]
[1731767874835,3.15832,3166.3,3165.6,3.15893]
[1731767875002,3.15839,3166.2,3165.6,3.15893]
[1731767876032,3.15849,3166.1,3165.5,3.0]
[1731767876242,3.15849,3166.1,3165.5,6.83839566]
[1731767876613,3.15833,3166.3,3165.6,3.22211896]
[1731767877139,3.15838,3166.2,3165.6,3.22211896]
[1731767877513,7.77511335,3166.8,3165.6,3.22211896]
[1731767877514,3.15799,3166.6,3165.7,3.15885]
[1731767877721,7.77527683,3166.8,3165.9,3.15856]
[1731767877911,3.15777,3166.8,3166.1,3.15838]
[1731767878802,3.15798,3166.6,3166.0,0.32217245]
[1731767879007,3.15777,3166.8,3166.0,3.48065245]
[1731767879200,3.15777,3166.8,3166.1,0.04906905]
[1731767879455,3.15777,3166.8,3166.2,3.15835]
[1731767879942,3.15777,3166.8,3166.3,0.04900017]
[1731767880142,7.77476726,3167.2,3166.4,3.15813]
[1731767880343,3.15739,3167.2,3166.5,0.06315019]
[1731767880547,4.61737726,3167.4,3166.6,0.04889826]
[1731767880548,3.15748,3167.1,3166.6,0.04889826]
[1731767880927,3.15786,3166.7,3166.1,3.0]
[1731767881126,3.15773,3166.9,3166.2,3.20737415]
[1731767881806,3.15776,3166.8,3166.2,0.04903415]
[1731767882135,3.15796,3166.7,3166.2,0.04903415]
[1731767882339,3.15796,3166.7,3166.0,3.15849]
[1731767882506,3.15813,3166.5,3165.9,3.0]
[1731767882709,3.15813,3166.5,3165.6,6.15893]
[1731767882710,3.15833,3166.3,3166.0,0.04907616]
[1731767883139,3.15813,3166.5,3166.1,0.04904218]
[1731767883309,3.15813,3166.5,3165.8,3.22190776]
[1731767883310,3.15817,3166.4,3165.8,3.22190776]
[1731767883509,3.15846,3166.1,3165.9,0.04911014]
[1731767883731,3.15828,3166.3,3165.9,0.04911014]
[1731767883939,3.15828,3166.3,3165.6,3.15893]
[1731767884213,3.15836,3166.2,3165.7,0.04917811]
[1731767884443,3.15849,3166.1,3165.7,0.04917811]
[1731767884835,3.15836,3166.2,3165.4,3.15908]
[1731767884836,3.15836,3166.2,3165.4,3.15914]
[1731767885136,3.15836,3166.2,3165.6,3.15895]
[1731767885310,3.15836,3166.2,3165.4,3.85426435]
[1731767885506,3.15849,3166.1,3165.4,3.85426435]
[1731767885746,3.15836,3166.2,3165.5,3.15896]
[1731767885949,3.15851,3166.1,3165.5,0.04924608]
[1731767886926,0.631687,3166.1,3165.5,0.04924608]
[1731767887116,3.15855,3166.0,3165.3,3.15919]
[1731767887424,9.01445699,3166.6,3165.0,3.0]
[1731767887425,3.15836,3166.2,3165.5,3.159]
[1731767887627,3.15849,3166.1,3165.4,0.11245569]
[1731767887820,3.15849,3166.1,3165.6,0.04921209]
[1731767888252,4.61957068,3166.4,3165.8,3.15871]
[1731767888429,7.77734068,3166.8,3166.0,3.15849]
[1731767888629,3.1579,3166.7,3166.1,3.15845]
[1731767888827,4.25142407,3166.7,3166.1,3.20732791]
[1731767889141,4.25142407,3166.7,3166.1,0.04887791]
[1731767889464,3.15757,3167.0,3166.4,3.15814]
[1731767889815,7.77695068,3167.2,3166.5,3.15799]
[1731767889816,4.61957068,3167.1,3166.5,3.15799]
[1731767890131,3.15746,3167.1,3166.5,3.20673202]
[1731767890642,4.61957068,3167.2,3166.6,3.22111586]
[1731767890842,3.0,3167.7,3166.8,3.15775]
[1731767890843,7.77675068,3167.4,3166.8,3.15775]
[1731767891171,8.55442575,3167.4,3166.8,3.15775]
[1731767891824,8.55442575,3167.4,3166.6,3.22111586]
[1731767891825,8.55442575,3167.4,3166.7,3.15781]
[1731767892074,4.61957068,3167.4,3166.3,3.15817]
[1731767892228,3.15707,3167.5,3166.1,3.01]
[1731767892229,7.77561273,3167.5,3166.8,3.15769]
[1731767893175,7.77561273,3167.5,3166.9,3.15765]
[1731767893385,4.61854273,3167.5,3166.9,3.20600051]
[1731767893675,4.61854273,3167.7,3167.1,3.15739]
[1731767893877,4.61854273,3167.8,3167.0,0.04842889]
[1731767894042,5.79546009,3167.8,3167.2,3.20570098]
[1731767894244,11.64466845,3168.1,3167.3,3.15716]
[1731767894245,4.61854273,3168.0,3167.3,3.15716]
[1731767894577,4.61854273,3168.0,3167.4,3.15709]
[1731767894780,7.77508273,3168.1,3167.5,3.20530914]
[1731767895142,7.77508273,3168.1,3167.5,0.04825914]
[1731767895342,3.15654,3168.1,3167.5,3.26843342]
[1731767895679,3.15627,3168.3,3167.6,3.15696]
[1731767895884,0.77748127,3168.2,3167.5,0.11139342]
[1731767896042,0.77748127,3168.2,3167.7,0.0480732]
[1731767896236,3.15647,3168.1,3167.5,3.22018428]
[1731767896437,0.77748127,3168.2,3167.5,3.22018428]
[1731767896678,3.15627,3168.3,3167.7,3.15685]
[1731767896841,3.15627,3168.3,3167.7,3.21998047]
[1731767897181,3.15627,3168.3,3167.8,0.04803927]
[1731767897969,7.77397137,3168.5,3167.8,0.04803927]
[1731767898195,3.0,3168.9,3167.9,3.21971048]
[1731767898196,4.61788137,3168.6,3167.9,3.21971048]
[1731767898355,3.15589,3168.7,3167.9,0.06313048]
[1731767898542,3.15589,3168.7,3168.0,3.15655]
[1731767898543,4.24888414,3168.7,3168.0,3.15655]
[1731767898996,4.24888414,3168.7,3168.1,0.04791989]
[1731767899337,4.24888414,3168.7,3168.0,3.15655]
[1731767899683,3.15605,3168.6,3168.1,0.04806169]
[1731767899855,3.15605,3168.6,3168.0,3.15652]
[1731767900051,3.15605,3168.6,3168.2,0.04786664]
[1731767900253,3.15605,3168.6,3168.0,3.15652]
[1731767900448,3.15605,3168.6,3168.3,0.04760766]
[1731767900654,0.42489941,3168.5,3168.3,0.04760766]
[1731767900864,3.15605,3168.6,3167.9,3.15664]
[1731767901056,3.15605,3168.6,3168.0,0.06312439]
[1731767901261,3.15579,3168.8,3168.1,3.15646]
[1731767901482,3.15579,3168.8,3168.2,3.15634]
[1731767901812,3.15579,3168.8,3168.2,3.20398159]
[1731767901969,3.15552,3169.1,3168.2,3.20398159]
[1731767901970,3.15564,3169.0,3168.2,3.20398159]
[1731767902180,0.631116,3168.9,3168.2,3.26710099]
[1731767902670,0.631116,3168.9,3168.2,0.04764159]
[1731767902986,3.15616,3168.5,3168.3,0.04761414]
[1731767903184,3.15616,3168.5,3167.9,3.15666]
[1731767903374,3.15586,3168.7,3167.9,3.15666]
[1731767903743,3.15586,3168.7,3168.0,0.04771592]
[1731767904045,3.15598,3168.6,3168.0,0.11084033]
[1731767904357,3.15607,3168.5,3168.0,0.11084033]
[1731767904550,3.15607,3168.5,3168.0,0.04771592]
[1731767904748,3.15607,3168.5,3167.8,3.15674]
[1731767905287,3.15607,3168.5,3167.9,3.26751539]
[1731767905441,3.8503795,3168.5,3167.9,0.04776096]
[1731767905683,3.15656,3168.0,3167.9,0.04776096]
[1731767906121,3.15656,3168.0,3167.1,3.15744]
[1731767906122,3.03247485,3168.4,3167.4,0.06313428]
[1731767906431,3.15638,3168.2,3167.6,3.15694]
[1731767906596,0.315638,3168.1,3167.4,0.06313428]
[1731767906937,3.15608,3168.5,3167.7,3.20459982]
[1731767907219,3.03247485,3168.7,3167.4,3.15708]
[1731767907520,3.1563,3168.3,3167.4,3.15708]
[1731767907820,3.15655,3168.1,3167.4,3.15708]
[1731767907982,3.15655,3168.1,3167.5,0.04795974]
[1731767908188,3.1563,3168.3,3167.5,0.04795974]
[1731767908407,3.15639,3168.2,3167.5,3.20499974]
[1731767908621,7.61100601,3169.0,3167.5,3.20499974]
[1731767908622,3.15607,3168.5,3167.6,3.22004163]
[1731767908826,3.15618,3168.4,3167.6,3.15691]
[1731767909122,3.15632,3168.3,3167.7,0.04785938]
[1731767909587,3.15607,3168.5,3167.7,3.20468938]
[1731767909785,3.15607,3168.5,3167.8,0.06312847]
[1731767909982,3.787266,3168.5,3167.9,0.04779151]
[1731767910206,3.15589,3168.7,3168.0,3.15653]
[1731767910402,3.15589,3168.7,3168.0,3.21965386]
[1731767910622,3.15589,3168.7,3168.1,0.04770698]
[1731767910623,3.15606,3168.6,3168.1,0.04770698]
[1731767911230,3.15606,3168.6,3168.2,0.04767305]
[1731767911833,3.15606,3168.6,3168.3,0.04763079]
[1731767912220,3.15606,3168.6,3168.0,3.15655]
[1731767912528,3.15588,3168.7,3168.4,0.04759687]
[1731767912685,3.15588,3168.7,3168.0,3.15655]
[1731767912686,3.787037,3168.7,3168.0,3.15655]
[1731767912889,3.15588,3168.7,3168.5,0.04756295]
[1731767913116,3.15588,3168.7,3168.0,3.15655]
[1731767913307,3.15588,3168.7,3168.6,0.04752903]
[1731767913509,3.15588,3168.7,3168.0,3.15655]
[1731767913510,3.15596,3168.6,3168.0,3.15655]
[1731767913744,3.15596,3168.6,3168.0,3.787876]
[1731767914494,3.15576,3168.8,3168.2,3.15636]
[1731767915593,3.15576,3168.8,3168.3,0.06311779]
[1731767915793,3.15576,3168.8,3168.0,3.787876]
[1731767915991,3.15593,3168.7,3168.0,3.15655]
[1731767916216,3.15615,3168.5,3167.9,0.55]
[1731767916499,3.15603,3168.6,3167.9,3.70665]
[1731767916925,3.15607,3168.5,3167.9,3.70665]
[1731767917632,3.15608,3168.5,3167.9,3.70665]
[1731767917844,3.15603,3168.6,3167.9,4.393001]
[1731767918018,3.15603,3168.6,3168.0,3.15655]
[1731767919149,3.15578,3168.8,3168.0,3.15655]
[1731767919514,3.15598,3168.6,3168.0,3.15655]
[1731767919708,3.03247485,3169.0,3167.9,1.236351]
[1731767920011,3.15586,3168.7,3168.1,3.15642]
[1731767920336,3.15549,3169.1,3168.2,0.06311948]
[1731767920540,3.15578,3168.8,3168.2,3.15635]
[1731767920721,3.15578,3168.8,3168.2,3.471985]
[1731767920921,3.15567,3168.9,3168.2,3.471985]
[1731767921131,3.15605,3168.6,3168.2,0.315635]
[1731767921318,3.15547,3169.1,3167.7,3.15683]
[1731767921319,3.0,3169.1,3167.7,3.15683]
[1731767921534,3.15647,3168.1,3167.5,3.15703]
[1731767922309,3.03247485,3168.7,3167.1,0.636972]
[1731767922310,3.15638,3168.2,3167.1,0.636972]
[1731767922546,0.01,3168.5,3167.1,0.636972]
[1731767922547,3.1569,3167.7,3167.1,0.636972]
[1731767922917,3.15677,3167.8,3167.2,3.15733]
[1731767923110,3.15677,3167.8,3167.1,0.636972]
[1731767923449,3.15677,3167.8,3166.7,3.15776]
[1731767923450,3.15686,3167.7,3166.7,3.15776]
[1731767923755,3.03247485,3167.8,3166.7,3.15776]
[1731767923756,3.15728,3167.3,3166.7,3.15776]
[1731767924051,3.15717,3167.4,3166.7,3.15776]
[1731767924227,3.15729,3167.3,3166.8,0.04353328]
[1731767924460,3.15764,3167.0,3166.8,0.04353328]
[1731767924788,3.15744,3167.2,3165.7,3.03247485]
[1731767924935,3.15695,3167.7,3166.1,0.01]
[1731767925276,3.15704,3167.6,3166.8,3.15767]
[1731767925445,3.15713,3167.5,3166.8,3.15767]
[1731767925650,3.15717,3167.4,3166.9,0.35930429]
[1731767925944,3.15677,3167.8,3166.9,0.04353729]
[1731767926271,6.18899485,3168.1,3166.9,3.15765]
[1731767926272,3.15708,3167.5,3166.9,3.15765]
[1731767926474,3.15708,3167.5,3167.0,0.04350334]
[1731767927170,3.15697,3167.6,3167.1,0.04346938]
[1731767927376,3.15697,3167.6,3166.9,3.15759]
[1731767927547,3.15707,3167.5,3166.7,3.70779]
[1731767928077,3.15707,3167.5,3166.8,3.20125125]
[1731767928657,3.15689,3167.7,3166.9,3.15756]
[1731767928859,3.15689,3167.7,3167.1,3.15744]
[1731767929181,3.15649,3168.1,3167.0,0.59349685]
[1731767929403,3.15586,3168.8,3167.3,0.55]
[1731767929404,3.15628,3168.3,3167.3,0.55]
[1731767929612,3.15637,3168.2,3167.5,3.15698]
[1731767929769,3.472007,3168.2,3167.6,0.06312998]
[1731767930109,3.472007,3168.2,3167.7,0.04327077]
[1731767930110,3.15637,3168.2,3167.7,0.04327077]
[1731767930378,3.15617,3168.4,3167.6,0.06313001]
[1731767930582,3.15646,3168.1,3167.7,0.04327077]
[1731767931150,3.15646,3168.1,3167.5,3.15698]
[1731767931350,3.15646,3168.1,3167.6,0.315698]
[1731767931571,3.15646,3168.1,3167.6,0.35898098]
[1731767932161,3.15629,3168.3,3167.6,3.51593098]
[1731767932375,3.15629,3168.3,3167.7,0.06313004]
[1731767932576,3.15629,3168.3,3167.8,0.04321784]
[1731767933345,3.15629,3168.3,3167.8,0.46273557]
[1731767933798,3.15599,3168.6,3167.9,0.06312631]
[1731767933955,3.03247485,3169.0,3167.8,0.46273557]
[1731767933956,3.15579,3168.8,3168.0,0.04312313]
[1731767934308,3.03247485,3169.0,3168.4,3.15616]
[1731767934309,3.15559,3169.0,3168.4,3.15616]
[1731767934455,3.1554,3169.2,3168.2,3.7063]
[1731767934657,3.15566,3169.0,3168.5,0.04294794]
[1731767934963,0.61878749,3169.1,3168.3,0.06311453]
[1731767935154,3.15616,3168.4,3167.6,3.0]
[1731767935508,3.15648,3168.1,3167.5,3.15705]
[1731767935696,3.15648,3168.1,3167.6,3.0]
[1731767936199,3.138616,3168.1,3167.6,3.0]
[1731767936404,3.138616,3168.1,3167.5,4.088479]
[1731767936581,3.15626,3168.4,3167.0,6.15753]
[1731767936783,3.15643,3168.2,3167.5,3.15704]
[1731767936968,3.15626,3168.4,3167.7,3.15685]
[1731767937168,3.15596,3168.6,3167.7,3.15685]
[1731767937370,3.15638,3168.2,3167.5,3.15704]
[1731767937670,3.15624,3168.4,3167.5,3.15706]
[1731767937870,3.15627,3168.3,3167.7,3.15684]
[1731767938570,0.61884348,3168.5,3167.5,3.15706]
[1731767938771,3.15637,3168.2,3167.5,3.15706]
[1731767939006,3.15648,3168.1,3167.5,3.15706]
[1731767939203,3.15618,3168.4,3167.6,0.04327183]
[1731767939371,3.15635,3168.3,3167.6,0.04327183]
[1731767939576,3.76343086,3168.4,3167.7,3.15683]
[1731767939776,3.76343086,3168.4,3167.8,0.04320766]
[1731767940397,0.61884348,3168.5,3167.8,0.04320766]
[1731767940570,0.61884348,3168.5,3167.9,3.15664]
[1731767940769,3.15599,3168.6,3168.0,0.04309969]
[1731767941606,3.15607,3168.5,3168.0,0.04309969]
[1731767941808,3.15624,3168.4,3168.0,0.04309969]
[1731767942029,3.15638,3168.2,3167.5,3.15704]
[1731767942308,3.15638,3168.2,3167.3,3.15724]
[1731767942309,3.15657,3168.0,3167.3,3.15724]
[1731767942481,3.1567,3167.9,3167.6,0.04322157]
[1731767942684,3.15657,3168.0,3167.3,3.15724]
[1731767943200,3.15657,3168.0,3167.4,3.20037575]
[1731767944391,3.15675,3167.9,3167.4,0.04328575]
[1731767944591,3.15675,3167.9,3167.2,3.15733]
[1731767944790,3.15675,3167.9,3167.3,0.0433197]
[1731767945012,8.48847644,3168.4,3167.3,0.0433197]
[1731767945013,3.15687,3167.7,3167.3,0.0433197]
[1731767945230,3.15687,3167.7,3167.0,3.15756]
[1731767945527,3.15687,3167.7,3167.4,0.04328575]
[1731767945695,3.15687,3167.7,3166.9,3.0]
[1731767945891,3.15687,3167.7,3166.4,0.64001868]
[1731767945892,3.03247485,3167.2,3166.4,0.64001868]
[1731767946129,3.15767,3166.9,3166.4,0.64001868]
[1731767946490,3.15746,3167.1,3166.4,0.64001868]
[1731767946725,3.15763,3167.0,3166.4,0.64001868]
[1731767946892,3.15766,3166.9,3166.4,0.64001868]
[1731767947292,3.15777,3166.8,3165.6,6.48605477]
[1731767947493,3.15777,3166.8,3165.8,3.70867]
[1731767947732,3.15777,3166.8,3166.0,0.55]
[1731767947904,3.15777,3166.8,3166.0,3.70855]
[1731767948318,3.15761,3167.0,3166.0,0.55]
[1731767948522,4.0059722,3167.2,3166.4,3.15808]
[1731767948711,3.15749,3167.1,3166.4,3.15808]
[1731767948919,3.15766,3166.9,3166.2,3.15836]
[1731767949110,3.15773,3166.9,3166.2,3.15836]
[1731767949726,3.15799,3166.6,3165.8,6.15874]
[1731767950092,3.15799,3166.6,3165.7,0.64860548]
[1731767950093,3.15799,3166.6,3165.9,3.15865]
[1731767950292,6.19026485,3166.8,3165.7,3.80744548]
[1731767950293,3.15807,3166.5,3165.7,3.80744548]
[1731767950733,3.15788,3166.7,3165.7,0.64860548]
[1731767950953,3.15788,3166.7,3166.0,3.15852]
[1731767951107,3.789007,3167.1,3166.1,3.15837]
[1731767951311,3.03247485,3167.3,3166.0,3.15855]
[1731767951703,3.15787,3166.7,3166.0,3.15855]
[1731767952131,3.15796,3166.6,3165.9,3.15861]
[1731767952303,3.15796,3166.6,3165.9,6.31719]
[1731767952504,3.15796,3166.6,3166.0,3.790269]
[1731767953842,3.15796,3166.6,3166.0,3.15855]
[1731767954198,3.15796,3166.6,3166.1,0.03723455]
[1731767954835,3.15776,3166.8,3166.1,0.03723455]
[1731767955198,3.15786,3166.7,3166.1,0.03723455]
[1731767955414,3.15767,3166.9,3166.2,3.15835]
[1731767955625,3.15777,3166.8,3166.3,0.35672504]
[1731767955825,3.15777,3166.8,3166.3,0.03716658]
[1731767956044,3.15777,3166.8,3166.0,3.15849]
[1731767956356,3.15777,3166.8,3166.4,0.0371326]
[1731767956561,3.15785,3166.8,3166.0,3.15849]
[1731767956728,3.15785,3166.8,3166.5,0.03709863]
[1731767956929,3.15786,3166.7,3166.0,3.15849]
[1731767957242,3.03247485,3166.7,3165.3,0.6459781]
[1731767957447,3.03247485,3166.4,3166.1,0.03732625]
[1731767957615,3.15852,3166.1,3165.0,3.15955]
[1731767957821,3.15852,3166.1,3164.9,35.0]
[1731767957822,3.15852,3166.1,3165.4,3.15909]
[1731767958149,3.15852,3166.1,3165.5,3.19655908]
[1731767958350,3.0,3167.0,3165.6,0.06317124]
[1731767958547,3.15798,3166.6,3165.9,3.15858]
[1731767958763,3.15798,3166.6,3166.0,3.15855]
[1731767959060,3.15798,3166.6,3166.0,3.19586363]
[1731767959236,3.15782,3166.8,3166.0,3.19586363]
[1731767959559,3.15801,3166.6,3166.0,3.19586363]
[1731767959734,3.15809,3166.5,3166.0,0.03731363]
[1731767959923,3.15793,3166.7,3166.0,3.19586363]
[1731767960127,3.15793,3166.7,3166.0,3.15855]
[1731767960347,3.15793,3166.7,3166.1,0.03733017]
[1731767961260,3.03247485,3167.4,3166.1,0.03733017]
[1731767961424,3.15767,3166.9,3166.3,3.15825]
[1731767961630,3.15767,3166.9,3166.4,0.03719809]
[1731767962318,3.15767,3166.9,3166.3,3.15825]
[1731767962719,3.15777,3166.8,3166.1,3.15839]
[1731767962947,3.15777,3166.8,3166.2,0.631688]
[1731767963138,3.15777,3166.8,3166.2,0.66895405]
[1731767964023,3.15756,3167.0,3166.2,0.03726605]
[1731767964251,3.15815,3166.5,3165.8,3.15873]
[1731767964565,3.15815,3166.5,3166.3,0.03776466]
[1731767964718,3.15788,3166.7,3166.3,0.03776466]
[1731767964917,3.15788,3166.7,3165.7,3.0]
[1731767964918,3.15802,3166.6,3165.9,3.15856]
[1731767965161,3.15785,3166.8,3166.1,3.15845]
[1731767965558,3.15785,3166.8,3166.2,0.0372104]
[1731767966224,3.15748,3167.1,3166.3,3.15822]
[1731767966453,3.15697,3167.6,3166.9,3.15765]
[1731767966780,3.15662,3168.0,3167.0,3.22063133]
[1731767967057,3.15662,3168.0,3167.2,3.15727]
[1731767967259,3.15662,3168.0,3167.3,3.15725]
[1731767967422,3.15662,3168.0,3167.3,3.19412734]
[1731767967865,3.03247485,3168.2,3167.3,0.03687734]
[1731767968165,3.15677,3167.8,3167.3,0.03687734]
[1731767968323,3.15677,3167.8,3167.1,3.15743]
[1731767968522,3.15677,3167.8,3167.4,0.03675354]
[1731767968723,3.788106,3167.8,3167.1,3.15743]
[1731767968922,3.788106,3167.8,3167.5,0.0366881]
[1731767969158,3.788106,3167.8,3167.1,3.15743]
[1731767969360,0.631336,3167.8,3167.6,0.03665414]
[1731767969572,3.15686,3167.7,3167.0,3.15755]
[1731767969777,3.15699,3167.6,3167.0,3.15755]
[1731767969929,3.15686,3167.7,3167.0,3.15755]
[1731767970478,3.15676,3167.8,3167.0,3.15755]
[1731767970640,3.03247485,3167.9,3166.5,3.15805]
[1731767970841,3.03247485,3167.9,3166.3,3.15824]
[1731767970842,3.15772,3166.9,3166.1,3.15843]
[1731767971166,3.1577,3166.9,3166.2,3.15834]
[1731767971360,3.1577,3166.9,3166.3,0.315834]
[1731767971533,3.1577,3166.9,3166.3,3.474084]
[1731767972464,3.15753,3167.1,3166.3,0.315834]
[1731767972674,6.472426,3167.8,3166.8,3.15766]
[1731767972868,3.15707,3167.5,3166.8,3.15766]
[1731767973376,3.15686,3167.7,3166.9,3.15759]
[1731767973530,0.315666,3167.8,3166.7,3.15784]
[1731767973732,3.15703,3167.6,3166.9,3.15759]
[1731767975430,3.15703,3167.6,3167.0,3.15755]
[1731767975631,3.472436,3167.8,3167.0,3.15755]
[1731767976049,3.15677,3167.8,3167.1,3.15744]
[1731767976631,3.15677,3167.8,3166.9,3.15765]
[1731767976925,3.15677,3167.8,3167.2,3.15735]
[1731767977931,3.15659,3168.0,3167.4,3.15715]
[1731767978931,3.15638,3168.2,3167.2,3.15735]
[1731767979131,3.15667,3167.9,3167.2,3.15735]
[1731767979434,3.1571,3167.5,3166.9,6.15765]
[1731767979749,0.315638,3168.1,3166.6,3.47303]
[1731767979750,3.15736,3167.2,3166.6,3.47303]
[1731767980577,3.15721,3167.4,3166.7,3.15783]
[1731767981078,3.15727,3167.3,3166.7,3.15783]
[1731767981452,3.15699,3167.6,3166.3,3.315834]
[1731767981453,3.03247485,3167.6,3166.3,3.15825]
[1731767981783,3.15775,3166.9,3166.2,3.15835]
[1731767982562,3.15782,3166.8,3166.1,3.0]
[1731767982765,3.15782,3166.8,3166.1,6.15839]
[1731767983281,3.15758,3167.0,3166.3,3.15825]
[1731767983782,3.789077,3167.0,3166.3,3.15825]
[1731767983966,3.15769,3166.9,3166.3,3.15825]
[1731767984279,3.15769,3166.9,3166.4,0.03588123]
[1731767984704,3.15796,3166.6,3166.4,0.03588123]
[1731767985110,3.15796,3166.6,3165.9,3.15864]
[1731767985282,3.15796,3166.6,3166.5,0.0358787]
[1731767985478,3.15796,3166.6,3165.9,3.15864]
[1731767985687,3.15812,3166.5,3165.9,3.15864]
[1731767986380,3.15787,3166.7,3165.8,6.15874]
[1731767986720,3.15815,3166.5,3165.8,6.15874]
[1731767986875,3.15801,3166.6,3165.9,3.15865]
[1731767987788,3.15784,3166.8,3165.9,3.15865]
[1731767988101,3.15806,3166.5,3165.9,3.15865]
[1731767991001,3.15806,3166.5,3165.9,3.05865]
[1731767992726,3.15806,3166.5,3165.7,3.15885]
[1731767992909,3.15806,3166.5,3165.8,6.15868]
[1731767993112,3.15816,3166.4,3165.8,6.15868]
[1731767993652,3.15816,3166.4,3165.6,3.32598203]
[1731767993812,3.15816,3166.4,3165.7,3.15884]
[1731767994010,3.15816,3166.4,3165.8,3.0]
[1731767994521,3.66397185,3167.0,3165.4,3.64278406]
[1731767994739,3.15845,3166.2,3165.6,3.0]
[1731767995059,3.15846,3166.1,3165.5,3.15898]
[1731767996555,3.15834,3166.3,3165.2,3.0]